fUST/lending_fUST_20250623
["ID","MTS","AMOUNT","RATE_DAILY","PERIOD"]
[367075206,1750650638703,-216.705257,0.00021916,10]
[367075207,1750650638713,-213.63163053,0.00021916,7]
[367075209,1750650638722,-1748.0,0.00021916,2]
[367075211,1750650638731,-1748.0,0.00021916,2]
[367075213,1750650638740,-1748.0,0.00021916,2]
[367075215,1750650638750,-1748.0,0.00021916,2]
[367075217,1750650638760,-1748.0,0.00021916,2]
[367075219,1750650638769,-1748.0,0.00021916,2]
[367075221,1750650638779,-1748.0,0.00021916,2]
[367075223,1750650638788,-715.11,0.00021917,2]
[367075225,1750650638797,-514.87927659,0.00021917,2]
[367075227,1750650638807,-460.0,0.00021917,2]
[367075229,1750650638817,-460.0,0.00021917,2]
[367075231,1750650638826,-460.0,0.00021917,2]
[367075233,1750650638835,-500.0,0.00021917,2]
[367075235,1750650638844,-500.0,0.00021917,2]
[367075237,1750650638854,-500.0,0.00021917,2]
[367075239,1750650638863,-500.0,0.00021917,2]
[367075241,1750650638873,-500.0,0.00021917,2]
[367075243,1750650638882,-500.0,0.00021917,2]
[367075245,1750650638892,-580.84,0.00021917,2]
[367075247,1750650638901,-460.0,0.00021917,2]
[367075249,1750650638911,-157.47574497,0.00021917,2]
[367075251,1750650638921,-497.22,0.00021917,2]
[367075253,1750650638930,-468.95,0.00021917,2]
[367075255,1750650638941,-460.81367298,0.00021917,2]
[367075257,1750650638950,-460.0,0.00021917,2]
[367075259,1750650638960,-460.0,0.00021917,2]
[367075261,1750650638969,-460.0,0.00021917,2]
[367075263,1750650638979,-460.0,0.00021917,2]
[367075265,1750650638988,-460.0,0.00021917,2]
[367075268,1750650639006,-460.0,0.00021917,2]
[367075270,1750650639018,-465.61923004,0.00021917,2]
[367075272,1750650639028,-460.0,0.00021917,2]
[367075274,1750650639038,-460.0,0.00021917,2]
[367075276,1750650639047,-460.0,0.00021917,2]
[367075279,1750650639057,-697.91,0.00021917,2]
[367075281,1750650639066,-429.10236389,0.00021917,2]
[367075282,1750650639075,-460.0,0.00021917,2]
[367075284,1750650639085,-524.96,0.00021917,2]
[367075287,1750650639095,-460.0,0.00021917,2]
[367075288,1750650639104,-457.24295903,0.00021917,2]
[367075290,1750650639114,-460.0,0.00021917,2]
[367075292,1750650639123,-460.0,0.00021917,2]
[367075294,1750650639133,-460.0,0.00021917,2]
[367075296,1750650639143,-460.0,0.00021917,2]
[367075298,1750650639152,-472.31,0.00021917,2]
[367075300,1750650639161,-460.0,0.00021917,2]
[367075302,1750650639171,-377.67531408,0.00021917,2]
[367075304,1750650639181,-545.12256686,0.00021917,2]
[367075306,1750650639191,-460.0,0.00021917,2]
[367075308,1750650639201,-816.0,0.00021917,2]
[367075310,1750650639210,-460.0,0.00021917,2]
[367075312,1750650639220,-460.0,0.00021917,2]
[367075314,1750650639230,-460.0,0.00021917,2]
[367075316,1750650639239,-460.0,0.00021917,2]
[367075319,1750650639250,-460.0,0.00021917,2]
[367075320,1750650639260,-460.0,0.00021917,2]
[367075322,1750650639272,-460.0,0.00021917,2]
[367075324,1750650639283,-460.0,0.00021917,2]
[367075327,1750650639293,-460.0,0.00021917,2]
[367075329,1750650639303,-460.0,0.00021917,2]
[367075331,1750650639314,-460.0,0.00021917,2]
[367075333,1750650639324,-460.0,0.00021917,2]
[367075335,1750650639332,-460.0,0.00021917,2]
[367075337,1750650639342,-669.73,0.00021917,2]
[367075339,1750650639352,-423.95007544,0.00021917,2]
[367075341,1750650639362,-562.49,0.00021917,2]
[367075343,1750650639371,-460.0,0.00021917,2]
[367075345,1750650639381,-460.78625412,0.00021917,2]
[367075347,1750650639390,-460.0,0.00021917,2]
[367075349,1750650639400,-460.0,0.00021917,2]
[367075351,1750650639410,-460.0,0.00021917,2]
[367075353,1750650639420,-460.0,0.00021917,2]
[367075355,1750650639430,-460.0,0.00021917,2]
[367075357,1750650639440,-312.9862047,0.00021917,2]
[367075359,1750650639449,-460.0,0.00021917,2]
[367075361,1750650639459,-1164.54,0.00021917,2]
[367075363,1750650639469,-460.0,0.00021917,2]
[367075365,1750650639479,-460.0,0.00021917,2]
[367075367,1750650639488,-460.0,0.00021917,2]
[367075369,1750650639499,-585.32318055,0.00021917,2]
[367075371,1750650639508,-460.0,0.00021917,2]
[367075374,1750650639517,-460.0,0.00021917,2]
[367075376,1750650639527,-460.0,0.00021917,2]
[367075378,1750650639536,-460.0,0.00021917,2]
[367075380,1750650639546,-460.0,0.00021917,2]
[367075382,1750650639555,-460.0,0.00021917,2]
[367075384,1750650639565,-460.0,0.00021917,2]
[367075386,1750650639574,-460.0,0.00021917,2]
[367075388,1750650639583,-460.0,0.00021917,2]
[367075390,1750650639592,-460.0,0.00021917,2]
[367075392,1750650639602,-460.0,0.00021917,2]
[367075394,1750650639611,-201.95662886,0.00021917,2]
[367075396,1750650639621,-460.0,0.00021917,2]
[367075398,1750650639630,-460.0,0.00021917,2]
[367075400,1750650639639,-440.0,0.00021917,2]
[367075402,1750650639649,-460.0,0.00021917,2]
[367075404,1750650639658,-460.0,0.00021917,2]
[367075406,1750650639667,-530.96,0.00021917,2]
[367075408,1750650639676,-382.67804461,0.00021917,2]
[367075410,1750650639686,-460.0,0.00021917,2]
[367075413,1750650639695,-460.0,0.00021917,2]
[367075415,1750650639705,-460.0,0.00021917,2]
[367075417,1750650639714,-460.0,0.00021917,2]
[367075419,1750650639725,-460.0,0.00021917,2]
[367075421,1750650639735,-460.0,0.00021917,2]
[367075423,1750650639745,-500.0,0.00021917,2]
[367075425,1750650639755,-500.0,0.00021917,2]
[367075427,1750650639765,-460.0,0.00021917,2]
[367075429,1750650639775,-500.0,0.00021917,2]
[367075431,1750650639784,-500.0,0.00021917,2]
[367075433,1750650639794,-500.0,0.00021917,2]
[367075435,1750650639803,-500.0,0.00021917,2]
[367075437,1750650639813,-500.0,0.00021917,2]
[367075439,1750650639822,-500.0,0.00021917,2]
[367075441,1750650639832,-500.0,0.00021917,2]
[367075443,1750650639841,-500.0,0.00021917,2]
[367075445,1750650639851,-500.0,0.00021917,2]
[367075447,1750650639860,-500.0,0.00021917,2]
[367075449,1750650639869,-623.89917797,0.00021917,2]
[367075451,1750650639879,-460.0,0.00021917,2]
[367075453,1750650639888,-435.87543375,0.00021917,2]
[367075455,1750650639897,-460.0,0.00021917,2]
[367075457,1750650639907,-460.0,0.00021917,2]
[367075459,1750650639917,-460.0,0.00021917,2]
[367075461,1750650639927,-460.0,0.00021917,2]
[367075463,1750650639936,-460.0,0.00021917,2]
[367075465,1750650639947,-500.0,0.00021917,2]
[367075467,1750650639957,-460.0,0.00021917,2]
[367075469,1750650639967,-460.0,0.00021917,2]
[367075471,1750650639977,-460.0,0.00021917,2]
[367075473,1750650639986,-460.0,0.00021917,2]
[367075475,1750650639996,-1000.0,0.00021917,2]
[367075477,1750650640006,-460.0,0.00021917,2]
[367075479,1750650640016,-460.0,0.00021917,2]
[367075481,1750650640025,-437.40834449,0.00021917,2]
[367075483,1750650640035,-460.0,0.00021917,2]
[367075485,1750650640044,-460.0,0.00021917,2]
[367075487,1750650640053,-460.0,0.00021917,2]
[367075489,1750650640063,-460.0,0.00021917,2]
[367075491,1750650640073,-460.38455804,0.00021917,2]
[367075493,1750650640082,-460.0,0.00021917,2]
[367075495,1750650640095,-460.0,0.00021917,2]
[367075497,1750650640105,-512.6,0.00021917,2]
[367075499,1750650640115,-460.0,0.00021917,2]
[367075501,1750650640126,-460.0,0.00021917,2]
[367075503,1750650640136,-460.0,0.00021917,2]
[367075505,1750650640146,-460.0,0.00021917,2]
[367075507,1750650640156,-460.0,0.00021917,2]
[367075509,1750650640165,-460.0,0.00021917,2]
[367075511,1750650640174,-460.0,0.00021917,2]
[367075513,1750650640184,-460.0,0.00021917,2]
[367075515,1750650640194,-460.0,0.00021917,2]
[367075517,1750650640203,-460.0,0.00021917,2]
[367075520,1750650640214,-460.0,0.00021917,2]
[367075522,1750650640224,-460.0,0.00021917,2]
[367075524,1750650640235,-460.0,0.00021917,2]
[367075526,1750650640245,-460.0,0.00021917,2]
[367075528,1750650640254,-1034.97,0.00021917,2]
[367075529,1750650640264,-460.0,0.00021917,2]
[367075531,1750650640276,-500.0,0.00021917,2]
[367075533,1750650640286,-464.32227468,0.00021917,2]
[367075535,1750650640295,-550.64,0.00021917,2]
[367075537,1750650640305,-460.0,0.00021917,2]
[367075539,1750650640315,-734.85,0.00021917,2]
[367075541,1750650640325,-460.0,0.00021917,2]
[367075544,1750650640335,-460.0,0.00021917,2]
[367075546,1750650640345,-460.0,0.00021917,2]
[367075548,1750650640355,-460.0,0.00021917,2]
[367075550,1750650640364,-287.46108804,0.00021917,2]
[367075552,1750650640374,-460.0,0.00021917,2]
[367075553,1750650640384,-460.0,0.00021917,2]
[367075555,1750650640394,-460.0,0.00021917,2]
[367075557,1750650640403,-538.96,0.00021917,2]
[367075559,1750650640413,-460.0,0.00021917,2]
[367075561,1750650640422,-460.0,0.00021917,2]
[367075563,1750650640432,-460.0,0.00021917,2]
[367075565,1750650640442,-814.32,0.00021917,2]
[367075567,1750650640451,-460.0,0.00021917,2]
[367075569,1750650640461,-460.0,0.00021917,2]
[367075571,1750650640470,-460.0,0.00021917,2]
[367075573,1750650640480,-460.0,0.00021917,2]
[367075576,1750650640490,-460.0,0.00021917,2]
[367075577,1750650640499,-460.0,0.00021917,2]
[367075579,1750650640509,-460.0,0.00021917,2]
[367075581,1750650640518,-460.51890456,0.00021917,2]
[367075583,1750650640527,-460.0,0.00021917,2]
[367075585,1750650640537,-460.0,0.00021917,2]
[367075587,1750650640547,-223.46578571,0.00021917,2]
[367075590,1750650640557,-460.0,0.00021917,2]
[367075591,1750650640567,-460.0,0.00021917,2]
[367075593,1750650640577,-460.0,0.00021917,2]
[367075596,1750650640587,-812.87,0.00021917,2]
[367075598,1750650640596,-460.0,0.00021917,2]
[367075600,1750650640607,-460.0,0.00021917,2]
[367075601,1750650640617,-460.0,0.00021917,2]
[367075603,1750650640627,-515.34,0.00021917,2]
[367075605,1750650640637,-499.85657197,0.00021917,2]
[367075607,1750650640646,-499.06,0.00021917,2]
[367075610,1750650640656,-460.0,0.00021917,2]
[367075612,1750650640666,-460.0,0.00021917,2]
[367075614,1750650640675,-440.06076546,0.00021917,2]
[367075616,1750650640685,-460.0,0.00021917,2]
[367075618,1750650640694,-460.0,0.00021917,2]
[367075620,1750650640704,-460.0,0.00021917,2]
[367075622,1750650640714,-460.0,0.00021917,2]
[367075624,1750650640723,-460.0,0.00021917,2]
[367075626,1750650640733,-460.0,0.00021917,2]
[367075628,1750650640742,-460.0,0.00021917,2]
[367075630,1750650640753,-460.0,0.00021917,2]
[367075632,1750650640763,-460.0,0.00021917,2]
[367075634,1750650640772,-460.0,0.00021917,2]
[367075636,1750650640782,-460.0,0.00021917,2]
[367075638,1750650640792,-460.68420026,0.00021917,2]
[367075640,1750650640801,-460.0,0.00021917,2]
[367075642,1750650640811,-460.0,0.00021917,2]
[367075644,1750650640820,-460.0,0.00021917,2]
[367075646,1750650640830,-1949.02,0.00021917,2]
[367075648,1750650640840,-460.0,0.00021917,2]
[367075650,1750650640849,-460.0,0.00021917,2]
[367075652,1750650640859,-460.0,0.00021917,2]
[367075654,1750650640868,-460.0,0.00021917,2]
[367075656,1750650640878,-460.0,0.00021917,2]
[367075658,1750650640888,-460.0,0.00021917,2]
[367075660,1750650640897,-460.0,0.00021917,2]
[367075662,1750650640907,-460.0,0.00021917,2]
[367075664,1750650640917,-464.23441407,0.00021917,2]
[367075666,1750650640927,-800.74,0.00021917,2]
[367075668,1750650640937,-400.5505396,0.00021917,2]
[367075670,1750650640946,-460.0,0.00021917,2]
[367075672,1750650640957,-624.67,0.00021917,2]
[367075674,1750650640967,-460.0,0.00021917,2]
[367075676,1750650640977,-460.0,0.00021917,2]
[367075678,1750650640987,-460.0,0.00021917,2]
[367075680,1750650640997,-190.71969621,0.00021917,2]
[367075682,1750650641007,-460.0,0.00021917,2]
[367075684,1750650641017,-460.0,0.00021917,2]
[367075686,1750650641027,-460.0,0.00021917,2]
[367075689,1750650641038,-460.0,0.00021917,2]
[367075691,1750650641048,-460.0,0.00021917,2]
[367075693,1750650641058,-460.0,0.00021917,2]
[367075695,1750650641068,-444.58093495,0.00021917,2]
[367075696,1750650641078,-738.61,0.00021917,2]
[367075697,1750650641087,-460.0,0.00021917,2]
[367075698,1750650641098,-460.0,0.00021917,2]
[367075699,1750650641107,-460.0,0.00021917,2]
[367075700,1750650641117,-609.91,0.00021917,2]
[367075701,1750650641127,-460.0,0.00021917,2]
[367075702,1750650641137,-460.0,0.00021917,2]
[367075703,1750650641147,-460.0,0.00021917,2]
[367075705,1750650641157,-460.0,0.00021917,2]
[367075707,1750650641167,-460.0,0.00021917,2]
[367075709,1750650641176,-460.0,0.00021917,2]
[367075711,1750650641189,-460.0,0.00021917,2]
[367075713,1750650641199,-300.0,0.00021917,2]
[367075715,1750650641209,-460.0,0.00021917,2]
[367075718,1750650641219,-223.30599992,0.00021917,2]
[367075720,1750650641229,-460.0,0.00021917,2]
[367075722,1750650641239,-2284.4,0.00021917,2]
[367075724,1750650641251,-460.0,0.00021917,2]
[367075726,1750650641261,-460.0,0.00021917,2]
[367075728,1750650641277,-1189.1,0.00021917,2]
[367075730,1750650641287,-513.91185086,0.00021917,2]
[367075732,1750650641297,-358.6990112,0.00021917,2]
[367075734,1750650641306,-460.0,0.00021917,2]
[367075736,1750650641318,-554.74,0.00021917,2]
[367075738,1750650641328,-460.0,0.00021917,2]
[367075740,1750650641338,-500.0,0.00021917,2]
[367075742,1750650641348,-460.0,0.00021917,2]
[367075744,1750650641359,-500.0,0.00021917,2]
[367075746,1750650641368,-460.0,0.00021917,2]
[367075748,1750650641378,-460.0,0.00021917,2]
[367075750,1750650641388,-460.0,0.00021917,2]
[367075752,1750650641398,-460.0,0.00021917,2]
[367075755,1750650641408,-763.97,0.00021917,2]
[367075757,1750650641418,-460.0,0.00021917,2]
[367075759,1750650641428,-460.0,0.00021917,2]
[367075761,1750650641438,-460.0,0.00021917,2]
[367075763,1750650641448,-523.72,0.00021917,2]
[367075765,1750650641458,-460.0,0.00021917,2]
[367075767,1750650641468,-460.0,0.00021917,2]
[367075769,1750650641478,-460.0,0.00021917,2]
[367075771,1750650641487,-462.07128322,0.00021917,2]
[367075773,1750650641498,-460.0,0.00021917,2]
[367075775,1750650641508,-460.0,0.00021917,2]
[367075777,1750650641518,-460.0,0.00021917,2]
[367075780,1750650641528,-460.0,0.00021917,2]
[367075782,1750650641539,-2011.75,0.00021917,2]
[367075784,1750650641549,-460.0,0.00021917,2]
[367075786,1750650641558,-523.35617931,0.00021917,2]
[367075788,1750650641569,-460.0,0.00021917,2]
[367075790,1750650641579,-460.0,0.00021917,2]
[367075792,1750650641589,-460.0,0.00021917,2]
[367075794,1750650641599,-1138.34,0.00021917,2]
[367075796,1750650641609,-963.83,0.00021917,2]
[367075798,1750650641619,-853.24,0.00021917,2]
[367075800,1750650641629,-460.0,0.00021917,2]
[367075802,1750650641639,-460.0,0.00021917,2]
[367075804,1750650641649,-460.61863843,0.00021917,2]
[367075806,1750650641659,-598.02,0.00021917,2]
[367075808,1750650641669,-460.0,0.00021917,2]
[367075810,1750650641679,-1885.15,0.00021917,2]
[367075812,1750650641689,-724.81,0.00021917,2]
[367075815,1750650641699,-460.0,0.00021917,2]
[367075817,1750650641709,-460.0,0.00021917,2]
[367075819,1750650641720,-522.51,0.00021917,2]
[367075821,1750650641730,-460.0,0.00021917,2]
[367075823,1750650641739,-460.0,0.00021917,2]
[367075825,1750650641749,-3242.17,0.00021917,2]
[367075827,1750650641759,-460.0,0.00021917,2]
[367075829,1750650641769,-460.0,0.00021917,2]
[367075831,1750650641778,-460.0,0.00021917,2]
[367075833,1750650641788,-770.75,0.00021917,2]
[367075835,1750650641798,-460.0,0.00021917,2]
[367075837,1750650641808,-460.0,0.00021917,2]
[367075839,1750650641818,-460.0,0.00021917,2]
[367075842,1750650641829,-460.0,0.00021917,2]
[367075844,1750650641839,-460.0,0.00021917,2]
[367075846,1750650641849,-460.0,0.00021917,2]
[367075848,1750650641859,-987.04,0.00021917,2]
[367075850,1750650641868,-460.28690481,0.00021917,2]
[367075852,1750650641878,-1001.95,0.00021917,2]
[367075854,1750650641888,-317.89474815,0.00021917,2]
[367076060,1750650643749,-958.83,0.00021906,10]
[367076062,1750650643762,-176.23470003,0.00021917,2]
[367076064,1750650643773,-464.30055182,0.00021917,2]
[367076066,1750650643783,-769.65,0.00021917,2]
[367076068,1750650643792,-1377.57,0.00021917,2]
[367076070,1750650643802,-460.0,0.00021917,2]
[367076072,1750650643811,-460.0,0.00021917,2]
[367076098,1750650644032,-722.74,0.00021917,2]
[367076100,1750650644042,-460.0,0.00021917,2]
[367076102,1750650644051,-1271.45,0.00021917,2]
[367076104,1750650644061,-460.0,0.00021917,2]
[367076106,1750650644071,-460.0,0.00021917,2]
[367076108,1750650644081,-460.0,0.00021917,2]
[367076111,1750650644092,-460.0,0.00021917,2]
[367076112,1750650644101,-460.0,0.00021917,2]
[367076115,1750650644111,-460.0,0.00021917,2]
[367076117,1750650644120,-460.0,0.00021917,2]
[367076119,1750650644130,-460.45259994,0.00021917,2]
[367076121,1750650644138,-735.26,0.00021917,2]
[367076123,1750650644148,-460.0,0.00021917,2]
[367076125,1750650644157,-460.0,0.00021917,2]
[367076127,1750650644167,-460.0,0.00021917,2]
[367076129,1750650644177,-460.0,0.00021917,2]
[367076131,1750650644187,-460.0,0.00021917,2]
[367076133,1750650644196,-460.0,0.00021917,2]
[367076135,1750650644206,-460.0,0.00021917,2]
[367076137,1750650644216,-460.0,0.00021917,2]
[367076139,1750650644227,-277.82840209,0.00021917,2]
[367076141,1750650644236,-460.0,0.00021917,2]
[367076143,1750650644246,-460.0,0.00021917,2]
[367076145,1750650644256,-1788.0,0.00021917,2]
[367076147,1750650644265,-460.0,0.00021917,2]
[367076149,1750650644278,-460.0,0.00021917,2]
[367076151,1750650644287,-460.0,0.00021917,2]
[367076153,1750650644297,-460.0,0.00021917,2]
[367076155,1750650644306,-460.0,0.00021917,2]
[367076157,1750650644318,-154.90412759,0.00021917,2]
[367076159,1750650644328,-460.0,0.00021917,2]
[367076161,1750650644337,-460.0,0.00021917,2]
[367076163,1750650644347,-460.0,0.00021917,2]
[367076165,1750650644356,-460.0,0.00021917,2]
[367076167,1750650644367,-1602.60698649,0.00021917,2]
[367076170,1750650644381,-124.38301351,0.00021917,2]
[367076172,1750650644390,-1501.37,0.00021917,2]
[367076174,1750650644400,-43.21718323,0.00021917,2]
[367076176,1750650644412,-416.78281677,0.00021917,2]
[367076178,1750650644421,-192.7448395,0.00021917,2]
[367076376,1750650646410,-267.2551605,0.00021917,2]
[367076378,1750650646421,-101.39690785,0.00021917,2]
[367076380,1750650646433,-358.60309215,0.00021917,2]
[367076382,1750650646443,-460.0,0.00021917,2]
[367076384,1750650646452,-460.0,0.00021917,2]
[367076386,1750650646462,-460.0,0.00021917,2]
[367076388,1750650646472,-482.19406273,0.00021917,2]
[367076390,1750650646481,-460.0,0.00021917,2]
[367076392,1750650646491,-460.0,0.00021917,2]
[367076394,1750650646500,-424.4562788,0.00021917,2]
[367076396,1750650646510,-460.0,0.00021917,2]
[367076398,1750650646519,-921.0,0.00021917,2]
[367076400,1750650646530,-460.0,0.00021917,2]
[367076402,1750650646540,-460.0,0.00021917,2]
[367076404,1750650646549,-460.0,0.00021917,2]
[367076406,1750650646560,-463.9980877,0.00021917,2]
[367076408,1750650646570,-607.44,0.00021917,2]
[367076410,1750650646579,-843.54,0.00021917,2]
[367076412,1750650646589,-487.45,0.00021917,2]
[367076414,1750650646598,-225.17130457,0.00021917,2]
[367076416,1750650646607,-460.0,0.00021917,2]
[367076418,1750650646617,-2474.48,0.00021917,2]
[367076420,1750650646627,-460.0,0.00021917,2]
[367076422,1750650646636,-2474.48,0.00021917,2]
[367076424,1750650646653,-2474.48,0.00021917,2]
[367076426,1750650646668,-2474.48,0.00021917,2]
[367076428,1750650646678,-1671.64652864,0.00021917,2]
[367077706,1750651248745,164.6792,0.00013699,2]
[367077707,1750651530086,-3939.9214606,0.00020693,2]
[367077708,1750651650354,-300.0,0.00020692,2]
[367077709,1750651650374,-300.0,0.00020692,2]
[367077710,1750651650395,-13495.50937066,0.00020693,2]
[367077711,1750651651196,-160.0,0.00020693,2]
[367077712,1750651705526,-236.03405117,0.00020693,2]
[367077716,1750651751106,-2223.56279485,0.00020693,2]
[367077717,1750651752090,-4844.97232272,0.00020693,2]
[367077718,1750651752111,-74.49521116,0.00020793,2]
[367077719,1750651769248,-118.81287484,0.00020793,2]
[367077749,1750651832253,-164.6792,0.00020951,2]
[367077750,1750651832263,-250.0,0.00021302,2]
[367077751,1750651832272,-254.72917597,0.00021416,2]
[367077752,1750651832281,-207.4,0.00021503,2]
[367077753,1750651832290,-1030.16243044,0.00021516,2]
[367077754,1750651832361,-3969.83756956,0.00021516,2]
[367077755,1750651832370,-500.0,0.00021581,2]
[367077756,1750651832380,-300.0,0.00021799,2]
[367077757,1750651832389,-1200.0,0.00021799,2]
[367077758,1750651832398,-731.6430826,0.000218,2]
[367077759,1750651832408,-365.8215413,0.000218,2]
[367077760,1750651832417,-365.8215413,0.000218,2]
[367077761,1750651832426,-365.8891638,0.000218,2]
[367077762,1750651832435,-365.8215413,0.000218,2]
[367077763,1750651832444,-365.8215413,0.000218,2]
[367077764,1750651832453,-365.8215413,0.000218,2]
[367077765,1750651832462,-317.0,0.00021808,2]
[367077766,1750651832471,-390.27448965,0.00021817,3]
[367077767,1750651832480,-8.8205001,0.00021817,2]
[367077768,1750651832492,-166.87383277,0.00021817,2]
[367077769,1750651832501,-365.8215413,0.000219,2]
[367077770,1750651832512,-731.6430826,0.000219,2]
[367077771,1750651832521,-510.31135926,0.000219,2]
[367077782,1750651838166,-221.33172334,0.000219,2]
[367077784,1750651838175,-365.8215413,0.000219,2]
[367077786,1750651838186,-365.8215413,0.000219,2]
[367077788,1750651838195,-491.62,0.00021907,3]
[367077790,1750651838204,-1000.0,0.00021914,2]
[367077792,1750651838213,-192.69,0.00021915,2]
[367077794,1750651838222,-1000.0,0.00021915,2]
[367077796,1750651838231,-1000.0,0.00021915,2]
[367077798,1750651838241,-1054.92893508,0.00021915,2]
[367077800,1750651838250,-500.0,0.00021916,2]
[367077802,1750651838260,-366.65348324,0.00021916,2]
[367077804,1750651838269,-308.72771979,0.00021916,2]
[367077806,1750651838279,-500.0,0.00021916,2]
[367077808,1750651838288,-245.62498102,0.00021916,2]
[367077810,1750651838298,-500.0,0.00021916,2]
[367077812,1750651838308,-460.0,0.00021917,2]
[367077814,1750651838318,-460.0,0.00021917,2]
[367077816,1750651838327,-460.0,0.00021917,2]
[367077818,1750651838336,-460.0,0.00021917,2]
[367077820,1750651838346,-460.0,0.00021917,2]
[367077822,1750651838355,-973.79,0.00021917,2]
[367077824,1750651838364,-460.0,0.00021917,2]
[367077826,1750651838374,-460.0,0.00021917,2]
[367077828,1750651838383,-431.16236284,0.00021917,2]
[367077830,1750651838393,-460.0,0.00021917,2]
[367077832,1750651838403,-460.0,0.00021917,2]
[367077834,1750651838412,-825.64,0.00021917,2]
[367077836,1750651838421,-460.0,0.00021917,2]
[367077838,1750651838431,-460.0,0.00021917,2]
[367077840,1750651838440,-460.0,0.00021917,2]
[367077842,1750651838450,-460.0,0.00021917,2]
[367077844,1750651838459,-460.0,0.00021917,2]
[367077846,1750651838469,-460.0,0.00021917,2]
[367077848,1750651838478,-460.0,0.00021917,2]
[367077850,1750651838488,-487.9,0.00021917,2]
[367077852,1750651838498,-466.34562027,0.00021917,2]
[367077854,1750651838507,-460.0,0.00021917,2]
[367077856,1750651838517,-460.0,0.00021917,2]
[367077858,1750651838527,-460.0,0.00021917,2]
[367077860,1750651838536,-460.0,0.00021917,2]
[367077862,1750651838546,-460.0,0.00021917,2]
[367077864,1750651838555,-460.0,0.00021917,2]
[367077866,1750651838565,-460.0,0.00021917,2]
[367077868,1750651838575,-462.61993472,0.00021917,2]
[367077870,1750651838585,-460.0,0.00021917,2]
[367077872,1750651838594,-460.0,0.00021917,2]
[367077874,1750651838604,-460.0,0.00021917,2]
[367077876,1750651838613,-460.0,0.00021917,2]
[367077878,1750651838622,-417.18234589,0.00021917,2]
[367077880,1750651838632,-460.0,0.00021917,2]
[367077882,1750651838642,-574.38350687,0.00021917,2]
[367077884,1750651838651,-460.0,0.00021917,2]
[367077886,1750651838661,-578.19,0.00021917,2]
[367077888,1750651838671,-460.0,0.00021917,2]
[367077890,1750651838681,-460.0,0.00021917,2]
[367077892,1750651838690,-460.0,0.00021917,2]
[367077894,1750651838700,-460.0,0.00021917,2]
[367077896,1750651838710,-509.9088642,0.00021917,2]
[367077898,1750651838719,-460.0,0.00021917,2]
[367077900,1750651838728,-581.43968787,0.00021917,2]
[367077902,1750651838738,-460.0,0.00021917,2]
[367077904,1750651838747,-460.0,0.00021917,2]
[367077906,1750651838757,-460.0,0.00021917,2]
[367077908,1750651838767,-460.57791091,0.00021917,2]
[367077910,1750651838777,-460.0,0.00021917,2]
[367077912,1750651838786,-460.0,0.00021917,2]
[367077914,1750651838795,-958.31,0.00021917,2]
[367077916,1750651838805,-746.86,0.00021917,2]